[Event "Titled Tuesday Blitz December 13 Early 2022"]
[White "Moskalenko, Alexander"]
[Black "Chernov, Mikhail"]
[WhiteFideId "4155351"]
[BlackFideId "24143170"]
[WhiteElo "2446"]
[BlackElo "2113"]
[Result "1-0"]
[Round "01"]
[TimeControl "180+1"]
[Date "2022.12.14"]
[WhiteClock "0:00:44"]
[BlackClock "0:00:17"]

1. d4 {[%clk 0:02:53]}  d5 {[%clk 0:02:58]} 2. Bg5 {[%clk 0:02:52]}  h6 {[%clk 0:02:58]} 3. Bh4 {[%clk 0:02:52]}  c5 {[%clk 0:02:57]} 4. e3 {[%clk 0:02:52]}  Nc6 {[%clk 0:02:57]} 5. Nf3 {[%clk 0:02:38]}  Bg4 {[%clk 0:02:56]} 6. c3 {[%clk 0:02:35]}  cxd4 {[%clk 0:02:43]} 7. exd4 {[%clk 0:02:34]}  Qb6 {[%clk 0:02:40]} 8. Nbd2 {[%clk 0:02:02]}  e6 {[%clk 0:02:32]} 9. Qb3 {[%clk 0:01:59]}  Qxb3 {[%clk 0:02:29]} 10. axb3 {[%clk 0:02:00]}  Bd6 {[%clk 0:02:28]} 11. Bg3 {[%clk 0:01:58]}  Kd7 {[%clk 0:02:22]} 12. b4 {[%clk 0:01:56]}  f6 {[%clk 0:02:02]} 13. Nb3 {[%clk 0:01:41]}  Nge7 {[%clk 0:01:52]} 14. Be2 {[%clk 0:01:21]}  Nf5 {[%clk 0:01:42]} 15. Nc5+ {[%clk 0:01:14]}  Bxc5 {[%clk 0:01:40]} 16. bxc5 {[%clk 0:01:15]}  Nxg3 {[%clk 0:01:40]} 17. hxg3 {[%clk 0:01:15]}  e5 {[%clk 0:01:20]} 18. dxe5 {[%clk 0:01:15]}  fxe5 {[%clk 0:01:19]} 19. O-O-O {[%clk 0:01:15]}  Ke6 {[%clk 0:01:10]} 20. Nd4+ {[%clk 0:01:12]}  exd4 {[%clk 0:01:04]} 21. Bxg4+ {[%clk 0:01:12]}  Kf6 {[%clk 0:01:03]} 22. cxd4 {[%clk 0:01:10]}  Rhe8 {[%clk 0:00:56]} 23. Bf3 {[%clk 0:01:10]}  Nb4 {[%clk 0:00:55]} 24. Kd2 {[%clk 0:01:03]}  Rad8 {[%clk 0:00:46]} 25. Rde1 {[%clk 0:01:00]}  Rxe1 {[%clk 0:00:41]} 26. Rxe1 {[%clk 0:01:00]}  Nc6 {[%clk 0:00:42]} 27. Kc3 {[%clk 0:00:59]}  Rd7 {[%clk 0:00:32]} 28. b4 {[%clk 0:00:56]}  a6 {[%clk 0:00:32]} 29. Bg4 {[%clk 0:00:50]}  Rc7 {[%clk 0:00:29]} 30. f4 {[%clk 0:00:47]}  Na7 {[%clk 0:00:17]} 31. Re6+ {[%clk 0:00:43]}  Kf7 {[%clk 0:00:17]} 32. Re5 {[%clk 0:00:44]}  Nb5+ {[%clk 0:00:17]} 33. Kd3 {[%clk 0:00:44]} 1-0


[Site "https://www.chess.com"]

[Event "Titled Tuesday Blitz December 13 Early 2022"]
[White "Musovic, Armin"]
[Black "Baruch, Liam"]
[WhiteFideId "939935"]
[BlackFideId "14322064"]
[WhiteElo "2288"]
[BlackElo "1954"]
[Result "1-0"]
[Round "01"]
[TimeControl "180+1"]
[Date "2022.12.14"]
[WhiteClock "0:01:38"]
[BlackClock "0:00:11"]

1. a3 {[%clk 0:03:00]}  d5 {[%clk 0:02:43]} 2. Nc3 {[%clk 0:03:00]}  e6 {[%clk 0:02:43]} 3. e4 {[%clk 0:03:01]}  d4 {[%clk 0:02:43]} 4. Nce2 {[%clk 0:03:01]}  c5 {[%clk 0:02:36]} 5. Ng3 {[%clk 0:03:00]}  Nc6 {[%clk 0:02:34]} 6. Bb5 {[%clk 0:03:00]}  Bd7 {[%clk 0:02:33]} 7. Bxc6 {[%clk 0:03:01]}  Bxc6 {[%clk 0:02:33]} 8. d3 {[%clk 0:03:02]}  Nf6 {[%clk 0:02:33]} 9. N1e2 {[%clk 0:03:02]}  Be7 {[%clk 0:02:32]} 10. O-O {[%clk 0:03:03]}  O-O {[%clk 0:02:32]} 11. h3 {[%clk 0:03:03]}  Rc8 {[%clk 0:02:31]} 12. f4 {[%clk 0:03:04]}  Nd7 {[%clk 0:02:30]} 13. f5 {[%clk 0:03:03]}  e5 {[%clk 0:02:29]} 14. Kh1 {[%clk 0:02:55]}  f6 {[%clk 0:02:30]} 15. Rg1 {[%clk 0:02:56]}  Bb5 {[%clk 0:02:28]} 16. b3 {[%clk 0:02:55]}  Ba6 {[%clk 0:02:27]} 17. a4 {[%clk 0:02:55]}  Rc7 {[%clk 0:02:21]} 18. Bd2 {[%clk 0:02:53]}  Qb8 {[%clk 0:02:10]} 19. Nh5 {[%clk 0:02:52]}  b5 {[%clk 0:02:08]} 20. axb5 {[%clk 0:02:50]}  Bxb5 {[%clk 0:02:07]} 21. g4 {[%clk 0:02:49]}  Qe8 {[%clk 0:01:56]} 22. Rg2 {[%clk 0:02:42]}  Qf7 {[%clk 0:01:26]} 23. Ng1 {[%clk 0:02:38]}  h6 {[%clk 0:01:25]} 24. h4 {[%clk 0:02:36]}  Rb8 {[%clk 0:01:23]} 25. g5 {[%clk 0:02:31]}  Bf8 {[%clk 0:01:09]} 26. gxh6 {[%clk 0:02:30]}  Nb6 {[%clk 0:00:56]} 27. Rg6 {[%clk 0:02:21]}  Kh8 {[%clk 0:00:42]} 28. hxg7+ {[%clk 0:02:19]}  Bxg7 {[%clk 0:00:40]} 29. Nxg7 {[%clk 0:02:20]}  Qxg7 {[%clk 0:00:41]} 30. Rxg7 {[%clk 0:02:04]}  Rxg7 {[%clk 0:00:41]} 31. Qh5+ {[%clk 0:02:02]}  Rh7 {[%clk 0:00:38]} 32. Bh6 {[%clk 0:02:01]}  Nd7 {[%clk 0:00:36]} 33. Rxa7 {[%clk 0:01:57]}  Rg8 {[%clk 0:00:36]} 34. Nf3 {[%clk 0:01:55]}  Bc6 {[%clk 0:00:35]} 35. Ng5 {[%clk 0:01:52]}  fxg5 {[%clk 0:00:35]} 36. hxg5 {[%clk 0:01:52]}  Nf8 {[%clk 0:00:30]} 37. Rxh7+ {[%clk 0:01:49]}  Nxh7 {[%clk 0:00:30]} 38. g6 {[%clk 0:01:49]}  Nf6 {[%clk 0:00:28]} 39. Qh4 {[%clk 0:01:43]}  Nxe4 {[%clk 0:00:17]} 40. dxe4 {[%clk 0:01:40]}  Bxe4+ {[%clk 0:00:11]} 41. Kh2 {[%clk 0:01:38]} 1-0


[Site "https://www.chess.com"]

[Event "Titled Tuesday Blitz December 13 Early 2022"]
[White "Oganian, Miran"]
[Black "Forgacs, Attila Jr."]
[WhiteFideId "4122488"]
[BlackFideId "773654"]
[WhiteElo "2323"]
[BlackElo "2168"]
[Result "1-0"]
[Round "01"]
[TimeControl "180+1"]
[Date "2022.12.14"]
[WhiteClock "0:02:12"]
[BlackClock "0:00:45"]

1. e4 {[%clk 0:02:59]}  e5 {[%clk 0:03:00]} 2. Nf3 {[%clk 0:02:59]}  Nc6 {[%clk 0:03:01]} 3. Nc3 {[%clk 0:02:58]}  Nf6 {[%clk 0:03:01]} 4. d4 {[%clk 0:02:58]}  exd4 {[%clk 0:03:01]} 5. Nxd4 {[%clk 0:02:59]}  Bb4 {[%clk 0:03:01]} 6. Nxc6 {[%clk 0:03:00]}  bxc6 {[%clk 0:03:02]} 7. Bd3 {[%clk 0:03:00]}  O-O {[%clk 0:03:02]} 8. O-O {[%clk 0:03:01]}  d5 {[%clk 0:03:03]} 9. exd5 {[%clk 0:03:01]}  cxd5 {[%clk 0:03:04]} 10. h3 {[%clk 0:03:01]}  Rb8 {[%clk 0:02:57]} 11. Qf3 {[%clk 0:03:00]}  c6 {[%clk 0:02:57]} 12. Bf4 {[%clk 0:02:58]}  Bd6 {[%clk 0:02:56]} 13. b3 {[%clk 0:02:59]}  Be6 {[%clk 0:02:50]} 14. Ne2 {[%clk 0:02:59]}  Qc7 {[%clk 0:02:49]} 15. Rfe1 {[%clk 0:02:58]}  Rfe8 {[%clk 0:02:46]} 16. Rad1 {[%clk 0:02:58]}  c5 {[%clk 0:02:42]} 17. c4 {[%clk 0:02:56]}  dxc4 {[%clk 0:02:40]} 18. Bxd6 {[%clk 0:02:55]}  Qxd6 {[%clk 0:02:19]} 19. Bxh7+ {[%clk 0:02:55]}  Kxh7 {[%clk 0:02:19]} 20. Rxd6 {[%clk 0:02:55]}  cxb3 {[%clk 0:02:20]} 21. axb3 {[%clk 0:02:54]}  Rxb3 {[%clk 0:02:19]} 22. Qf4 {[%clk 0:02:52]}  Rb4 {[%clk 0:02:11]} 23. Qg3 {[%clk 0:02:49]}  Bc4 {[%clk 0:02:08]} 24. Rxf6 {[%clk 0:02:44]}  gxf6 {[%clk 0:02:03]} 25. Qh4+ {[%clk 0:02:44]}  Kg7 {[%clk 0:01:54]} 26. Qg4+ {[%clk 0:02:45]}  Kh8 {[%clk 0:01:49]} 27. Qh5+ {[%clk 0:02:44]}  Kg7 {[%clk 0:01:44]} 28. Kh2 {[%clk 0:02:39]}  Re5 {[%clk 0:01:34]} 29. Qg4+ {[%clk 0:02:37]}  Kf8 {[%clk 0:01:32]} 30. Qc8+ {[%clk 0:02:34]}  Kg7 {[%clk 0:01:30]} 31. f4 {[%clk 0:02:25]}  Rxe2 {[%clk 0:01:20]} 32. Qg4+ {[%clk 0:02:18]}  Kf8 {[%clk 0:01:20]} 33. Rxe2 {[%clk 0:02:18]}  Bxe2 {[%clk 0:01:20]} 34. Qxe2 {[%clk 0:02:19]}  Rxf4 {[%clk 0:01:18]} 35. Qa6 {[%clk 0:02:17]}  Kg7 {[%clk 0:01:09]} 36. Qxa7 {[%clk 0:02:17]}  Rf5 {[%clk 0:01:09]} 37. Qd7 {[%clk 0:02:16]}  Re5 {[%clk 0:01:07]} 38. h4 {[%clk 0:02:16]}  Re4 {[%clk 0:01:01]} 39. g3 {[%clk 0:02:13]}  c4 {[%clk 0:01:01]} 40. Kh3 {[%clk 0:02:12]}  c3 {[%clk 0:00:59]} 41. Qc6 {[%clk 0:02:12]}  Re3 {[%clk 0:00:56]} 42. h5 {[%clk 0:02:12]}  f5 {[%clk 0:00:51]} 43. h6+ {[%clk 0:02:12]}  Kh7 {[%clk 0:00:45]} 44. Qf6 {[%clk 0:02:12]} 1-0


[Site "https://www.chess.com"]

[Event "Titled Tuesday Blitz December 13 Early 2022"]
[White "Ohanyan, Emin"]
[Black "Vega Gutierrez, Sabrina"]
[WhiteFideId "13312022"]
[BlackFideId "2219026"]
[WhiteElo "2352"]
[BlackElo "2261"]
[Result "1-0"]
[Round "01"]
[TimeControl "180+1"]
[Date "2022.12.14"]
[WhiteClock "0:00:09"]
[BlackClock "0:00:03"]

1. e4 {[%clk 0:02:59]}  c5 {[%clk 0:02:59]} 2. Nf3 {[%clk 0:02:59]}  Nc6 {[%clk 0:02:59]} 3. d4 {[%clk 0:03:00]}  cxd4 {[%clk 0:02:59]} 4. Nxd4 {[%clk 0:03:01]}  Nf6 {[%clk 0:02:59]} 5. Nc3 {[%clk 0:03:00]}  e5 {[%clk 0:02:59]} 6. Ndb5 {[%clk 0:03:00]}  d6 {[%clk 0:03:00]} 7. Bg5 {[%clk 0:03:01]}  a6 {[%clk 0:03:00]} 8. Na3 {[%clk 0:03:02]}  b5 {[%clk 0:03:00]} 9. Bxf6 {[%clk 0:03:02]}  gxf6 {[%clk 0:03:00]} 10. Nd5 {[%clk 0:03:03]}  Bg7 {[%clk 0:03:00]} 11. c3 {[%clk 0:03:04]}  f5 {[%clk 0:03:00]} 12. exf5 {[%clk 0:03:05]}  Bxf5 {[%clk 0:03:00]} 13. Nc2 {[%clk 0:03:06]}  Be6 {[%clk 0:03:00]} 14. Nce3 {[%clk 0:03:06]}  O-O {[%clk 0:03:00]} 15. Bd3 {[%clk 0:03:07]}  f5 {[%clk 0:02:59]} 16. O-O {[%clk 0:03:08]}  Kh8 {[%clk 0:02:56]} 17. Qh5 {[%clk 0:03:08]}  e4 {[%clk 0:02:54]} 18. Bc2 {[%clk 0:03:07]}  Ne7 {[%clk 0:02:42]} 19. Rad1 {[%clk 0:02:54]}  Ng6 {[%clk 0:02:35]} 20. g3 {[%clk 0:02:33]}  Ra7 {[%clk 0:02:26]} 21. Kh1 {[%clk 0:02:18]}  Raf7 {[%clk 0:02:24]} 22. Nf4 {[%clk 0:02:15]}  Nxf4 {[%clk 0:02:23]} 23. gxf4 {[%clk 0:02:16]}  Rf6 {[%clk 0:02:20]} 24. Rg1 {[%clk 0:01:25]}  Bh6 {[%clk 0:02:15]} 25. Qh4 {[%clk 0:01:21]}  Rg6 {[%clk 0:01:57]} 26. Qxd8 {[%clk 0:00:53]}  Rxd8 {[%clk 0:01:58]} 27. Nd5 {[%clk 0:00:49]}  Rxg1+ {[%clk 0:01:39]} 28. Kxg1 {[%clk 0:00:48]}  Rg8+ {[%clk 0:01:38]} 29. Kf1 {[%clk 0:00:47]}  Rg4 {[%clk 0:01:37]} 30. Ne3 {[%clk 0:00:45]}  Rg6 {[%clk 0:01:29]} 31. Rxd6 {[%clk 0:00:40]}  Bxf4 {[%clk 0:01:28]} 32. Rd8+ {[%clk 0:00:31]}  Kg7 {[%clk 0:01:28]} 33. Bb3 {[%clk 0:00:28]}  Bxb3 {[%clk 0:00:29]} 34. axb3 {[%clk 0:00:29]}  Bxe3 {[%clk 0:00:16]} 35. fxe3 {[%clk 0:00:30]}  Kf6 {[%clk 0:00:16]} 36. c4 {[%clk 0:00:27]}  bxc4 {[%clk 0:00:15]} 37. bxc4 {[%clk 0:00:28]}  Ke5 {[%clk 0:00:14]} 38. Rd5+ {[%clk 0:00:28]}  Ke6 {[%clk 0:00:14]} 39. Ra5 {[%clk 0:00:29]}  Ke7 {[%clk 0:00:06]} 40. Rxf5 {[%clk 0:00:26]}  Rb6 {[%clk 0:00:06]} 41. Re5+ {[%clk 0:00:19]}  Kf6 {[%clk 0:00:06]} 42. Rxe4 {[%clk 0:00:20]}  Rxb2 {[%clk 0:00:06]} 43. Rh4 {[%clk 0:00:19]}  Kg6 {[%clk 0:00:06]} 44. Ke1 {[%clk 0:00:20]}  a5 {[%clk 0:00:05]} 45. Kd1 {[%clk 0:00:18]}  a4 {[%clk 0:00:05]} 46. c5 {[%clk 0:00:17]}  a3 {[%clk 0:00:05]} 47. Kc1 {[%clk 0:00:14]}  Rb3 {[%clk 0:00:05]} 48. Ra4 {[%clk 0:00:09]}  Rxe3 {[%clk 0:00:04]} 49. Kd2 {[%clk 0:00:10]}  Rh3 {[%clk 0:00:04]} 50. c6 {[%clk 0:00:09]}  Rxh2+ {[%clk 0:00:04]} 51. Kc1 {[%clk 0:00:10]}  Rh5 {[%clk 0:00:03]} 52. Rc4 {[%clk 0:00:09]} 1-0


[Site "https://www.chess.com"]

[Event "Titled Tuesday Blitz December 13 Early 2022"]
[White "Osmak, Yuliia"]
[Black "Sankalan Shah"]
[WhiteFideId "14101602"]
[BlackFideId "25600362"]
[WhiteElo "2328"]
[BlackElo "2118"]
[Result "0-1"]
[Round "01"]
[TimeControl "180+1"]
[Date "2022.12.14"]
[WhiteClock "0:00:02"]
[BlackClock "0:00:35"]

1. e4 {[%clk 0:02:59]}  c6 {[%clk 0:02:54]} 2. d4 {[%clk 0:02:58]}  d6 {[%clk 0:02:54]} 3. f4 {[%clk 0:02:57]}  Nf6 {[%clk 0:02:53]} 4. Bd3 {[%clk 0:02:55]}  g6 {[%clk 0:02:51]} 5. Nf3 {[%clk 0:02:55]}  Bg7 {[%clk 0:02:50]} 6. O-O {[%clk 0:02:54]}  O-O {[%clk 0:02:48]} 7. c3 {[%clk 0:02:54]}  Nbd7 {[%clk 0:02:47]} 8. e5 {[%clk 0:02:43]}  Nd5 {[%clk 0:02:43]} 9. c4 {[%clk 0:02:40]}  Nb4 {[%clk 0:02:39]} 10. Be2 {[%clk 0:02:39]}  c5 {[%clk 0:02:37]} 11. a3 {[%clk 0:02:34]}  Nc6 {[%clk 0:02:32]} 12. d5 {[%clk 0:02:33]}  Nd4 {[%clk 0:02:32]} 13. Nxd4 {[%clk 0:02:31]}  cxd4 {[%clk 0:02:33]} 14. exd6 {[%clk 0:02:29]}  exd6 {[%clk 0:02:33]} 15. Nd2 {[%clk 0:02:25]}  a5 {[%clk 0:02:31]} 16. Nf3 {[%clk 0:02:23]}  Qf6 {[%clk 0:02:31]} 17. Bd3 {[%clk 0:02:16]}  Nc5 {[%clk 0:02:30]} 18. Ne1 {[%clk 0:02:01]}  Re8 {[%clk 0:02:14]} 19. b3 {[%clk 0:01:55]}  a4 {[%clk 0:02:00]} 20. b4 {[%clk 0:01:53]}  Nb3 {[%clk 0:02:00]} 21. Rb1 {[%clk 0:01:49]}  Bf5 {[%clk 0:01:57]} 22. Bb2 {[%clk 0:01:45]}  Qe7 {[%clk 0:01:48]} 23. Bxf5 {[%clk 0:01:39]}  gxf5 {[%clk 0:01:49]} 24. Nd3 {[%clk 0:01:20]}  Qe3+ {[%clk 0:01:48]} 25. Kh1 {[%clk 0:01:20]}  Nd2 {[%clk 0:01:48]} 26. Bc1 {[%clk 0:01:04]}  Qxd3 {[%clk 0:01:48]} 27. Bxd2 {[%clk 0:01:01]}  Qxc4 {[%clk 0:01:47]} 28. Qf3 {[%clk 0:00:58]}  Re4 {[%clk 0:01:44]} 29. Rbc1 {[%clk 0:00:51]}  Qxd5 {[%clk 0:01:44]} 30. Rc7 {[%clk 0:00:51]}  Rae8 {[%clk 0:01:42]} 31. h3 {[%clk 0:00:47]}  Qb3 {[%clk 0:01:41]} 32. Qh5 {[%clk 0:00:45]}  Re2 {[%clk 0:01:37]} 33. Bc1 {[%clk 0:00:27]}  d3 {[%clk 0:01:36]} 34. Qxf5 {[%clk 0:00:22]}  d2 {[%clk 0:01:31]} 35. Bxd2 {[%clk 0:00:20]}  Rxd2 {[%clk 0:01:31]} 36. Rxb7 {[%clk 0:00:20]}  Qa2 {[%clk 0:01:22]} 37. Qg4 {[%clk 0:00:15]}  h6 {[%clk 0:01:12]} 38. f5 {[%clk 0:00:15]}  Rf2 {[%clk 0:01:00]} 39. Rxf2 {[%clk 0:00:13]}  Qxf2 {[%clk 0:01:01]} 40. f6 {[%clk 0:00:09]}  Qxf6 {[%clk 0:01:00]} 41. Qg3 {[%clk 0:00:08]}  Qf1+ {[%clk 0:00:55]} 42. Kh2 {[%clk 0:00:08]}  Kh8 {[%clk 0:00:49]} 43. Rb5 {[%clk 0:00:04]}  Be5 {[%clk 0:00:43]} 44. Rxe5 {[%clk 0:00:05]}  Rxe5 {[%clk 0:00:44]} 45. Qc3 {[%clk 0:00:03]}  Qf6 {[%clk 0:00:39]} 46. Qc8+ {[%clk 0:00:01]}  Kg7 {[%clk 0:00:36]} 47. Qc2 {[%clk 0:00:02]}  Qf4+ {[%clk 0:00:34]} 48. g3 {[%clk 0:00:02]}  Qe4 {[%clk 0:00:35]} 0-1


[Site "https://www.chess.com"]

[Event "Titled Tuesday Blitz December 13 Early 2022"]
[White "Ozates, Tuna"]
[Black "Zhalmakhanov, Ramazan"]
[WhiteFideId "6354521"]
[BlackFideId "13706357"]
[WhiteElo "2151"]
[BlackElo "2432"]
[Result "0-1"]
[Round "01"]
[TimeControl "180+1"]
[Date "2022.12.13"]
[WhiteClock "0:00:13"]
[BlackClock "0:00:11"]

1. e4 {[%clk 0:02:59]}  c5 {[%clk 0:02:59]} 2. Nf3 {[%clk 0:02:59]}  Nc6 {[%clk 0:02:58]} 3. Bb5 {[%clk 0:02:59]}  g6 {[%clk 0:02:57]} 4. Bxc6 {[%clk 0:02:59]}  dxc6 {[%clk 0:02:58]} 5. d3 {[%clk 0:02:59]}  Bg7 {[%clk 0:02:58]} 6. h3 {[%clk 0:02:59]}  Nf6 {[%clk 0:02:57]} 7. Nc3 {[%clk 0:02:59]}  O-O {[%clk 0:02:57]} 8. Be3 {[%clk 0:03:00]}  b6 {[%clk 0:02:57]} 9. O-O {[%clk 0:02:58]}  Nh5 {[%clk 0:02:56]} 10. Qd2 {[%clk 0:02:58]}  e5 {[%clk 0:02:56]} 11. a3 {[%clk 0:02:49]}  Qf6 {[%clk 0:02:47]} 12. Ne2 {[%clk 0:02:46]}  Re8 {[%clk 0:02:36]} 13. b4 {[%clk 0:02:41]}  cxb4 {[%clk 0:02:31]} 14. axb4 {[%clk 0:02:42]}  Qd6 {[%clk 0:02:18]} 15. Bxb6 {[%clk 0:02:38]}  Bxh3 {[%clk 0:02:17]} 16. Bc5 {[%clk 0:02:19]}  Qf6 {[%clk 0:02:17]} 17. Qg5 {[%clk 0:02:12]}  Qxg5 {[%clk 0:02:11]} 18. Nxg5 {[%clk 0:02:11]}  Bg4 {[%clk 0:02:12]} 19. f3 {[%clk 0:02:01]}  Bd7 {[%clk 0:02:11]} 20. Rxa7 {[%clk 0:01:50]}  Rxa7 {[%clk 0:02:11]} 21. Bxa7 {[%clk 0:01:51]}  Ra8 {[%clk 0:02:10]} 22. Be3 {[%clk 0:01:48]}  Ra2 {[%clk 0:02:09]} 23. Rc1 {[%clk 0:01:47]}  Bf8 {[%clk 0:02:02]} 24. Bd2 {[%clk 0:01:42]}  Bh6 {[%clk 0:01:54]} 25. g4 {[%clk 0:01:26]}  Ng7 {[%clk 0:01:51]} 26. Nc3 {[%clk 0:01:14]}  Ra8 {[%clk 0:01:30]} 27. Rd1 {[%clk 0:01:09]}  f6 {[%clk 0:01:16]} 28. Nh3 {[%clk 0:01:09]}  Bxd2 {[%clk 0:01:17]} 29. Rxd2 {[%clk 0:01:10]}  Ne6 {[%clk 0:01:18]} 30. Ne2 {[%clk 0:01:09]}  Ra4 {[%clk 0:01:10]} 31. c3 {[%clk 0:01:09]}  Ra3 {[%clk 0:01:09]} 32. Nf2 {[%clk 0:01:07]}  Kf7 {[%clk 0:01:08]} 33. Nd1 {[%clk 0:01:06]}  Ke7 {[%clk 0:01:06]} 34. Ne3 {[%clk 0:01:06]}  Ng5 {[%clk 0:00:59]} 35. Kf2 {[%clk 0:01:03]}  h5 {[%clk 0:00:59]} 36. gxh5 {[%clk 0:01:02]}  gxh5 {[%clk 0:01:00]} 37. f4 {[%clk 0:01:01]}  Nh3+ {[%clk 0:00:55]} 38. Kf3 {[%clk 0:00:58]}  h4 {[%clk 0:00:50]} 39. Rc2 {[%clk 0:00:34]}  Ra8 {[%clk 0:00:41]} 40. fxe5 {[%clk 0:00:32]}  fxe5 {[%clk 0:00:41]} 41. Nc4 {[%clk 0:00:33]}  Rf8+ {[%clk 0:00:39]} 42. Ke3 {[%clk 0:00:33]}  Ke6 {[%clk 0:00:21]} 43. Rc1 {[%clk 0:00:31]}  Ng5 {[%clk 0:00:20]} 44. Rg1 {[%clk 0:00:27]}  Rf3+ {[%clk 0:00:20]} 45. Kd2 {[%clk 0:00:26]}  Nf7 {[%clk 0:00:15]} 46. Ne3 {[%clk 0:00:21]}  h3 {[%clk 0:00:14]} 47. Nf5 {[%clk 0:00:19]}  Kf6 {[%clk 0:00:14]} 48. Neg3 {[%clk 0:00:18]}  Ng5 {[%clk 0:00:11]} 49. Ke2 {[%clk 0:00:18]}  Bxf5 {[%clk 0:00:09]} 50. Nxf5 {[%clk 0:00:18]}  h2 {[%clk 0:00:09]} 51. Rh1 {[%clk 0:00:18]}  Rh3 {[%clk 0:00:09]} 52. Kf2 {[%clk 0:00:18]}  Rxd3 {[%clk 0:00:09]} 53. Rxh2 {[%clk 0:00:18]}  Nxe4+ {[%clk 0:00:09]} 54. Ke2 {[%clk 0:00:17]}  Rd2+ {[%clk 0:00:09]} 55. Ke3 {[%clk 0:00:17]}  Rxh2 {[%clk 0:00:10]} 56. Kxe4 {[%clk 0:00:16]}  Re2+ {[%clk 0:00:11]} 57. Ne3 {[%clk 0:00:17]}  Ke6 {[%clk 0:00:11]} 58. c4 {[%clk 0:00:16]}  Rb2 {[%clk 0:00:11]} 59. Kd3 {[%clk 0:00:13]}  Rxb4 {[%clk 0:00:11]} 0-1


[Site "https://www.chess.com"]

[Event "Titled Tuesday Blitz December 13 Early 2022"]
[White "Pakleza, Zbigniew"]
[Black "Sai Han Thiha"]
[WhiteFideId "1119290"]
[BlackFideId "13012290"]
[WhiteElo "2410"]
[BlackElo "1954"]
[Result "1-0"]
[Round "01"]
[TimeControl "180+1"]
[Date "2022.12.14"]
[WhiteClock "0:00:29"]
[BlackClock "0:00:01"]

1. d4 {[%clk 0:03:00]}  Nf6 {[%clk 0:03:00]} 2. Nf3 {[%clk 0:03:00]}  e6 {[%clk 0:03:00]} 3. Bf4 {[%clk 0:03:00]}  c5 {[%clk 0:03:00]} 4. c3 {[%clk 0:03:00]}  b6 {[%clk 0:02:59]} 5. e3 {[%clk 0:02:59]}  Bb7 {[%clk 0:02:58]} 6. Nbd2 {[%clk 0:02:58]}  cxd4 {[%clk 0:02:58]} 7. cxd4 {[%clk 0:02:58]}  d6 {[%clk 0:02:51]} 8. Bd3 {[%clk 0:02:51]}  Be7 {[%clk 0:02:47]} 9. O-O {[%clk 0:02:50]}  O-O {[%clk 0:02:36]} 10. h3 {[%clk 0:02:49]}  Nbd7 {[%clk 0:02:23]} 11. Qe2 {[%clk 0:02:42]}  a6 {[%clk 0:02:14]} 12. e4 {[%clk 0:02:35]}  b5 {[%clk 0:02:09]} 13. Rad1 {[%clk 0:02:20]}  Qb6 {[%clk 0:02:02]} 14. Rfe1 {[%clk 0:02:03]}  Rac8 {[%clk 0:01:58]} 15. Bb1 {[%clk 0:01:56]}  Rfe8 {[%clk 0:01:52]} 16. e5 {[%clk 0:01:52]}  Nd5 {[%clk 0:01:45]} 17. Bg5 {[%clk 0:01:52]}  Bf8 {[%clk 0:01:31]} 18. Qe4 {[%clk 0:01:47]}  g6 {[%clk 0:01:29]} 19. Qh4 {[%clk 0:01:41]}  dxe5 {[%clk 0:01:22]} 20. dxe5 {[%clk 0:01:35]}  Bg7 {[%clk 0:01:06]} 21. Bh6 {[%clk 0:01:02]}  Bxh6 {[%clk 0:00:54]} 22. Qxh6 {[%clk 0:01:01]}  Nf8 {[%clk 0:00:55]} 23. Ne4 {[%clk 0:00:53]}  Qd8 {[%clk 0:00:14]} 24. Nf6+ {[%clk 0:00:45]}  Nxf6 {[%clk 0:00:04]} 25. Rxd8 {[%clk 0:00:44]}  Nd5 {[%clk 0:00:03]} 26. Rxe8 {[%clk 0:00:38]}  Rxe8 {[%clk 0:00:04]} 27. Ng5 {[%clk 0:00:37]}  Rc8 {[%clk 0:00:03]} 28. Ne4 {[%clk 0:00:36]}  Nd7 {[%clk 0:00:02]} 29. Nd6 {[%clk 0:00:31]}  Rc7 {[%clk 0:00:02]} 30. Be4 {[%clk 0:00:32]}  Ba8 {[%clk 0:00:01]} 31. Ne8 {[%clk 0:00:29]} 1-0


[Site "https://www.chess.com"]

[Event "Titled Tuesday Blitz December 13 Early 2022"]
[White "Peatman, Carter"]
[Black "Ozen, Bahadir"]
[WhiteFideId "2096480"]
[BlackFideId "6337058"]
[WhiteElo "2469"]
[BlackElo "2503"]
[Result "0-1"]
[Round "01"]
[TimeControl "180+1"]
[Date "2022.12.14"]
[WhiteClock "0:00:15"]
[BlackClock "0:01:20"]

1. d4 {[%clk 0:02:38]}  d6 {[%clk 0:02:59]} 2. e4 {[%clk 0:02:36]}  Nf6 {[%clk 0:02:59]} 3. Nc3 {[%clk 0:02:36]}  Nbd7 {[%clk 0:02:59]} 4. f4 {[%clk 0:02:29]}  e5 {[%clk 0:02:59]} 5. Nf3 {[%clk 0:02:26]}  exd4 {[%clk 0:02:56]} 6. Nxd4 {[%clk 0:02:26]}  g6 {[%clk 0:02:48]} 7. Bd3 {[%clk 0:02:19]}  Bg7 {[%clk 0:02:48]} 8. Be3 {[%clk 0:02:10]}  O-O {[%clk 0:02:47]} 9. O-O {[%clk 0:02:10]}  Re8 {[%clk 0:02:46]} 10. Qf3 {[%clk 0:02:10]}  Nc5 {[%clk 0:02:43]} 11. Rae1 {[%clk 0:02:04]}  Ng4 {[%clk 0:02:40]} 12. Bf2 {[%clk 0:01:35]}  Nxf2 {[%clk 0:02:39]} 13. Qxf2 {[%clk 0:01:36]}  c6 {[%clk 0:02:12]} 14. f5 {[%clk 0:01:29]}  Qf6 {[%clk 0:02:06]} 15. fxg6 {[%clk 0:01:03]}  Qxf2+ {[%clk 0:02:03]} 16. Rxf2 {[%clk 0:01:02]}  hxg6 {[%clk 0:02:02]} 17. Nf3 {[%clk 0:01:01]}  b5 {[%clk 0:01:59]} 18. h3 {[%clk 0:00:53]}  a5 {[%clk 0:01:49]} 19. Nd1 {[%clk 0:00:47]}  Be6 {[%clk 0:01:47]} 20. a3 {[%clk 0:00:43]}  b4 {[%clk 0:01:36]} 21. axb4 {[%clk 0:00:41]}  axb4 {[%clk 0:01:37]} 22. Kh1 {[%clk 0:00:42]}  Bf6 {[%clk 0:01:28]} 23. Nd2 {[%clk 0:00:36]}  Bh4 {[%clk 0:01:27]} 24. Ref1 {[%clk 0:00:34]}  Bxf2 {[%clk 0:01:27]} 25. Rxf2 {[%clk 0:00:35]}  Ra1 {[%clk 0:01:27]} 26. Rf1 {[%clk 0:00:36]}  Rea8 {[%clk 0:01:23]} 27. Be2 {[%clk 0:00:34]}  Rc1 {[%clk 0:01:23]} 28. Bd3 {[%clk 0:00:32]}  Raa1 {[%clk 0:01:22]} 29. Ne3 {[%clk 0:00:31]}  Rxf1+ {[%clk 0:01:21]} 30. Bxf1 {[%clk 0:00:24]}  Re1 {[%clk 0:01:20]} 31. Ng4 {[%clk 0:00:14]}  Bxg4 {[%clk 0:01:20]} 32. hxg4 {[%clk 0:00:15]}  Rd1 {[%clk 0:01:20]} 0-1


[Site "https://www.chess.com"]